[Event "Titled Tuesday Blitz November 01 Early 2022"]
[White "Papasimakopoulos, Alexandros"]
[Black "Zhu, Jiner"]
[WhiteFideId "4244125"]
[BlackFideId "8608059"]
[WhiteElo "2357"]
[BlackElo "2384"]
[Result "1/2-1/2"]
[Round "11"]
[TimeControl "180+1"]
[Date "2022.11.01"]
[WhiteClock "0:00:08"]
[BlackClock "0:00:04"]

1. d4 {[%clk 0:02:53]}  Nf6 {[%clk 0:02:59]} 2. c4 {[%clk 0:02:49]}  g6 {[%clk 0:02:59]} 3. Nc3 {[%clk 0:02:47]}  Bg7 {[%clk 0:02:59]} 4. e4 {[%clk 0:02:46]}  d6 {[%clk 0:02:59]} 5. f3 {[%clk 0:02:46]}  O-O {[%clk 0:02:59]} 6. Nge2 {[%clk 0:02:47]}  c5 {[%clk 0:02:57]} 7. d5 {[%clk 0:02:47]}  e6 {[%clk 0:02:57]} 8. Ng3 {[%clk 0:02:47]}  exd5 {[%clk 0:02:57]} 9. cxd5 {[%clk 0:02:48]}  a6 {[%clk 0:02:54]} 10. a4 {[%clk 0:02:48]}  Nbd7 {[%clk 0:02:53]} 11. Be2 {[%clk 0:02:48]}  h5 {[%clk 0:02:53]} 12. Bg5 {[%clk 0:02:46]}  Qc7 {[%clk 0:02:50]} 13. Qd2 {[%clk 0:02:45]}  Re8 {[%clk 0:02:48]} 14. O-O {[%clk 0:02:45]}  Nh7 {[%clk 0:02:45]} 15. Bh4 {[%clk 0:02:44]}  Ne5 {[%clk 0:02:41]} 16. h3 {[%clk 0:02:38]}  c4 {[%clk 0:02:31]} 17. f4 {[%clk 0:02:31]}  Nd7 {[%clk 0:02:30]} 18. Kh1 {[%clk 0:02:21]}  Rb8 {[%clk 0:02:25]} 19. e5 {[%clk 0:02:18]}  dxe5 {[%clk 0:02:21]} 20. f5 {[%clk 0:02:18]}  Nc5 {[%clk 0:02:06]} 21. fxg6 {[%clk 0:02:13]}  fxg6 {[%clk 0:02:07]} 22. Bxc4 {[%clk 0:02:14]}  Kh8 {[%clk 0:01:50]} 23. d6 {[%clk 0:02:13]}  Qc6 {[%clk 0:01:49]} 24. Bf7 {[%clk 0:02:10]}  Bxh3 {[%clk 0:01:48]} 25. Bxg6 {[%clk 0:01:55]}  Re6 {[%clk 0:01:46]} 26. Be4 {[%clk 0:01:40]}  Rxd6 {[%clk 0:01:38]} 27. Qc2 {[%clk 0:01:25]}  Nxe4 {[%clk 0:01:31]} 28. Ngxe4 {[%clk 0:01:26]}  Bg4 {[%clk 0:01:19]} 29. Nxd6 {[%clk 0:01:24]}  Qxd6 {[%clk 0:01:20]} 30. Ne4 {[%clk 0:01:22]}  Qd5 {[%clk 0:01:15]} 31. Rae1 {[%clk 0:01:13]}  Rc8 {[%clk 0:01:14]} 32. Nc3 {[%clk 0:01:12]}  Qd7 {[%clk 0:01:07]} 33. Qg6 {[%clk 0:01:11]}  Rc6 {[%clk 0:00:57]} 34. Qf7 {[%clk 0:01:04]}  Rc7 {[%clk 0:00:57]} 35. Qxd7 {[%clk 0:00:57]}  Rxd7 {[%clk 0:00:58]} 36. Ne4 {[%clk 0:00:51]}  Rd4 {[%clk 0:00:58]} 37. Nc3 {[%clk 0:00:51]}  Kg8 {[%clk 0:00:55]} 38. Re4 {[%clk 0:00:50]}  Rd7 {[%clk 0:00:54]} 39. Rfe1 {[%clk 0:00:47]}  Nf8 {[%clk 0:00:53]} 40. Bg3 {[%clk 0:00:44]}  Ng6 {[%clk 0:00:52]} 41. Rc4 {[%clk 0:00:43]}  Rd3 {[%clk 0:00:48]} 42. Ne4 {[%clk 0:00:39]}  Rb3 {[%clk 0:00:39]} 43. Rc7 {[%clk 0:00:18]}  Bf5 {[%clk 0:00:30]} 44. Nd6 {[%clk 0:00:16]}  Bg4 {[%clk 0:00:28]} 45. Kh2 {[%clk 0:00:16]}  h4 {[%clk 0:00:28]} 46. Rxg7+ {[%clk 0:00:11]}  Kxg7 {[%clk 0:00:27]} 47. Bxe5+ {[%clk 0:00:12]}  Nxe5 {[%clk 0:00:26]} 48. Rxe5 {[%clk 0:00:13]}  Kf6 {[%clk 0:00:25]} 49. Re4 {[%clk 0:00:11]}  Bd7 {[%clk 0:00:24]} 50. Rxh4 {[%clk 0:00:10]}  Rxb2 {[%clk 0:00:23]} 51. Rh6+ {[%clk 0:00:10]}  Kg7 {[%clk 0:00:20]} 52. Rh4 {[%clk 0:00:09]}  Bc6 {[%clk 0:00:19]} 53. Nf5+ {[%clk 0:00:09]}  Kf6 {[%clk 0:00:19]} 54. Ne3 {[%clk 0:00:09]}  Re2 {[%clk 0:00:17]} 55. Rh3 {[%clk 0:00:08]}  Bxa4 {[%clk 0:00:15]} 56. Rf3+ {[%clk 0:00:08]}  Ke5 {[%clk 0:00:15]} 57. Ng4+ {[%clk 0:00:08]}  Ke6 {[%clk 0:00:13]} 58. Rf6+ {[%clk 0:00:07]}  Ke7 {[%clk 0:00:13]} 59. Rf3 {[%clk 0:00:02]}  Bc6 {[%clk 0:00:13]} 60. Rg3 {[%clk 0:00:03]}  a5 {[%clk 0:00:12]} 61. Ne3 {[%clk 0:00:04]}  a4 {[%clk 0:00:12]} 62. Nc4 {[%clk 0:00:04]}  b5 {[%clk 0:00:09]} 63. Ne3 {[%clk 0:00:04]}  Ke6 {[%clk 0:00:04]} 64. Nd1 {[%clk 0:00:03]}  Ke5 {[%clk 0:00:04]} 65. Nc3 {[%clk 0:00:03]}  Rc2 {[%clk 0:00:04]} 66. Nxb5 {[%clk 0:00:03]}  Bxb5 {[%clk 0:00:02]} 67. Rg5+ {[%clk 0:00:03]}  Kd4 {[%clk 0:00:03]} 68. Rxb5 {[%clk 0:00:04]}  a3 {[%clk 0:00:04]} 69. Ra5 {[%clk 0:00:05]}  a2 {[%clk 0:00:04]} 70. Kh3 {[%clk 0:00:05]}  Kc4 {[%clk 0:00:04]} 71. g4 {[%clk 0:00:05]}  Kb4 {[%clk 0:00:04]} 72. Rxa2 {[%clk 0:00:04]}  Rxa2 {[%clk 0:00:04]} 73. g5 {[%clk 0:00:05]}  Kc5 {[%clk 0:00:05]} 74. Kg4 {[%clk 0:00:05]}  Kd6 {[%clk 0:00:05]} 75. Kf5 {[%clk 0:00:06]}  Ke7 {[%clk 0:00:05]} 76. Kg6 {[%clk 0:00:07]}  Rh2 {[%clk 0:00:05]} 77. Kg7 {[%clk 0:00:07]}  Ke6 {[%clk 0:00:04]} 78. g6 {[%clk 0:00:07]}  Ke7 {[%clk 0:00:04]} 79. Kg8 {[%clk 0:00:07]}  Kf6 {[%clk 0:00:04]} 80. g7 {[%clk 0:00:07]}  Rg2 {[%clk 0:00:03]} 81. Kh8 {[%clk 0:00:08]}  Rh2+ {[%clk 0:00:04]} 82. Kg8 {[%clk 0:00:08]}  Ra2 {[%clk 0:00:04]} 83. Kh8 {[%clk 0:00:08]}  Rh2+ {[%clk 0:00:04]} 84. Kg8 {[%clk 0:00:08]} 1/2-1/2


[Site "https://www.chess.com"]

[Event "Titled Tuesday Blitz November 01 Early 2022"]
[White "Parpiev, Isaak"]
[Black "Yuan, Qingyu"]
[WhiteFideId "34281576"]
[BlackFideId "8609772"]
[WhiteElo "2100"]
[BlackElo "2359"]
[Result "0-1"]
[Round "11"]
[TimeControl "180+1"]
[Date "2022.11.01"]
[WhiteClock "0:00:01"]
[BlackClock "0:00:05"]

1. e4 {[%clk 0:02:55]}  c6 {[%clk 0:03:00]} 2. d4 {[%clk 0:02:55]}  d5 {[%clk 0:03:01]} 3. exd5 {[%clk 0:02:56]}  cxd5 {[%clk 0:03:01]} 4. c4 {[%clk 0:02:57]}  Nf6 {[%clk 0:03:01]} 5. Nc3 {[%clk 0:02:56]}  Nc6 {[%clk 0:03:02]} 6. Nf3 {[%clk 0:02:55]}  a6 {[%clk 0:03:02]} 7. c5 {[%clk 0:02:54]}  g6 {[%clk 0:03:01]} 8. Be2 {[%clk 0:02:52]}  Bg7 {[%clk 0:02:58]} 9. O-O {[%clk 0:02:51]}  Ne4 {[%clk 0:02:55]} 10. a3 {[%clk 0:02:45]}  O-O {[%clk 0:02:54]} 11. Bf4 {[%clk 0:02:45]}  Bg4 {[%clk 0:02:47]} 12. h3 {[%clk 0:02:26]}  Bxf3 {[%clk 0:02:43]} 13. Bxf3 {[%clk 0:02:27]}  Bxd4 {[%clk 0:02:14]} 14. Nxe4 {[%clk 0:01:52]}  dxe4 {[%clk 0:02:11]} 15. Bxe4 {[%clk 0:01:53]}  Bxc5 {[%clk 0:01:58]} 16. Qc2 {[%clk 0:01:41]}  Bd6 {[%clk 0:01:47]} 17. Bh6 {[%clk 0:01:35]}  Re8 {[%clk 0:01:43]} 18. Rfd1 {[%clk 0:01:33]}  Qc7 {[%clk 0:01:37]} 19. Rac1 {[%clk 0:01:33]}  Rac8 {[%clk 0:01:36]} 20. Qb3 {[%clk 0:01:30]}  Be5 {[%clk 0:01:24]} 21. Rd3 {[%clk 0:01:00]}  Bf6 {[%clk 0:01:11]} 22. Re1 {[%clk 0:00:41]}  Na5 {[%clk 0:00:53]} 23. Qd1 {[%clk 0:00:12]}  Red8 {[%clk 0:00:44]} 24. b4 {[%clk 0:00:12]}  Nc4 {[%clk 0:00:43]} 25. Qe2 {[%clk 0:00:07]}  b5 {[%clk 0:00:39]} 26. Rf3 {[%clk 0:00:07]}  Rd7 {[%clk 0:00:31]} 27. Rg3 {[%clk 0:00:06]}  Qe5 {[%clk 0:00:24]} 28. Qf3 {[%clk 0:00:03]}  Rcd8 {[%clk 0:00:19]} 29. Bf4 {[%clk 0:00:02]}  Qb2 {[%clk 0:00:19]} 30. Qg4 {[%clk 0:00:02]}  Ne5 {[%clk 0:00:17]} 31. Bxe5 {[%clk 0:00:02]}  Qxe5 {[%clk 0:00:17]} 32. h4 {[%clk 0:00:02]}  h5 {[%clk 0:00:16]} 33. Qf3 {[%clk 0:00:02]}  Kg7 {[%clk 0:00:14]} 34. Rh3 {[%clk 0:00:01]}  Qb2 {[%clk 0:00:12]} 35. Rg3 {[%clk 0:00:02]}  Rd2 {[%clk 0:00:10]} 36. Qxh5 {[%clk 0:00:02]}  Qe5 {[%clk 0:00:06]} 37. Qxe5 {[%clk 0:00:01]}  Bxe5 {[%clk 0:00:06]} 38. Rf3 {[%clk 0:00:01]}  Bf6 {[%clk 0:00:05]} 39. Bd3 {[%clk 0:00:01]}  Bxh4 {[%clk 0:00:05]} 0-1


[Site "https://www.chess.com"]

[Event "Titled Tuesday Blitz November 01 Early 2022"]
[White "Rose, Felix"]
[Black "Begunov, Konstantin"]
[WhiteFideId "5105722"]
[BlackFideId "4118510"]
[WhiteElo "2039"]
[BlackElo "2225"]
[Result "0-1"]
[Round "11"]
[TimeControl "180+1"]
[Date "2022.11.02"]
[WhiteClock "0:00:09"]
[BlackClock "0:00:18"]

1. e4 {[%clk 0:03:00]}  c5 {[%clk 0:02:59]} 2. Nf3 {[%clk 0:03:00]}  d6 {[%clk 0:03:00]} 3. d4 {[%clk 0:03:00]}  cxd4 {[%clk 0:03:01]} 4. Nxd4 {[%clk 0:03:01]}  Nf6 {[%clk 0:03:01]} 5. Nc3 {[%clk 0:03:01]}  a6 {[%clk 0:03:02]} 6. Be3 {[%clk 0:03:01]}  Ng4 {[%clk 0:03:01]} 7. Bc1 {[%clk 0:03:01]}  Nc6 {[%clk 0:03:01]} 8. h3 {[%clk 0:02:56]}  Nf6 {[%clk 0:02:52]} 9. Be3 {[%clk 0:02:51]}  e6 {[%clk 0:02:45]} 10. g4 {[%clk 0:02:51]}  Be7 {[%clk 0:02:42]} 11. Bg2 {[%clk 0:02:51]}  Qc7 {[%clk 0:02:36]} 12. Qd2 {[%clk 0:02:50]}  Ne5 {[%clk 0:02:33]} 13. b3 {[%clk 0:02:47]}  Rb8 {[%clk 0:02:24]} 14. a4 {[%clk 0:02:42]}  b6 {[%clk 0:02:13]} 15. f4 {[%clk 0:02:37]}  Ned7 {[%clk 0:01:59]} 16. e5 {[%clk 0:02:16]}  dxe5 {[%clk 0:01:56]} 17. Nc6 {[%clk 0:02:15]}  exf4 {[%clk 0:01:49]} 18. Bxf4 {[%clk 0:02:12]}  e5 {[%clk 0:01:45]} 19. Bg3 {[%clk 0:01:29]}  Bb7 {[%clk 0:01:38]} 20. Nxb8 {[%clk 0:01:18]}  Bxg2 {[%clk 0:01:36]} 21. Nxd7 {[%clk 0:01:15]}  Bxh1 {[%clk 0:01:28]} 22. Nxf6+ {[%clk 0:01:14]}  gxf6 {[%clk 0:00:53]} 23. O-O-O {[%clk 0:01:10]}  Bb4 {[%clk 0:00:49]} 24. Rxh1 {[%clk 0:00:50]}  Bxc3 {[%clk 0:00:49]} 25. Qh6 {[%clk 0:00:43]}  Qd6 {[%clk 0:00:20]} 26. Rf1 {[%clk 0:00:26]}  Ke7 {[%clk 0:00:19]} 27. Bh4 {[%clk 0:00:23]}  e4 {[%clk 0:00:19]} 28. Qe3 {[%clk 0:00:18]}  Qe5 {[%clk 0:00:18]} 29. Bxf6+ {[%clk 0:00:17]}  Qxf6 {[%clk 0:00:18]} 30. Rxf6 {[%clk 0:00:17]}  Bxf6 {[%clk 0:00:18]} 31. Qxe4+ {[%clk 0:00:18]}  Kf8 {[%clk 0:00:19]} 32. Qf5 {[%clk 0:00:15]}  Kg7 {[%clk 0:00:18]} 33. g5 {[%clk 0:00:15]}  Bc3 {[%clk 0:00:18]} 34. h4 {[%clk 0:00:10]}  Re8 {[%clk 0:00:18]} 35. Qf1 {[%clk 0:00:02]}  Re1+ {[%clk 0:00:18]} 36. Qxe1 {[%clk 0:00:02]}  Bxe1 {[%clk 0:00:19]} 37. Kd1 {[%clk 0:00:03]}  Bxh4 {[%clk 0:00:19]} 38. g6 {[%clk 0:00:03]}  hxg6 {[%clk 0:00:19]} 39. Ke2 {[%clk 0:00:04]}  a5 {[%clk 0:00:18]} 40. Kd3 {[%clk 0:00:05]}  Bf2 {[%clk 0:00:18]} 41. Kc4 {[%clk 0:00:06]}  Kf6 {[%clk 0:00:19]} 42. c3 {[%clk 0:00:06]}  g5 {[%clk 0:00:19]} 43. Kb5 {[%clk 0:00:06]}  g4 {[%clk 0:00:19]} 44. b4 {[%clk 0:00:07]}  axb4 {[%clk 0:00:19]} 45. cxb4 {[%clk 0:00:07]}  g3 {[%clk 0:00:20]} 46. a5 {[%clk 0:00:08]}  bxa5 {[%clk 0:00:21]} 47. bxa5 {[%clk 0:00:07]}  g2 {[%clk 0:00:22]} 48. a6 {[%clk 0:00:08]}  g1=Q {[%clk 0:00:22]} 49. Kc6 {[%clk 0:00:08]}  Qb1 {[%clk 0:00:21]} 50. Kc7 {[%clk 0:00:08]}  Qb6+ {[%clk 0:00:21]} 51. Kc8 {[%clk 0:00:08]}  Qxa6+ {[%clk 0:00:21]} 52. Kb8 {[%clk 0:00:09]}  Qa7+ {[%clk 0:00:20]} 53. Kc8 {[%clk 0:00:09]}  Ke6 {[%clk 0:00:18]} 54. Kd8 {[%clk 0:00:09]}  Qd7# {[%clk 0:00:18]} 0-1


[Site "https://www.chess.com"]

[Event "Titled Tuesday Blitz November 01 Early 2022"]
[White "Salem, A.R. Saleh"]
[Black "Kamsky, Gata"]
[WhiteFideId "9301348"]
[BlackFideId "2000024"]
[WhiteElo "2628"]
[BlackElo "2666"]
[Result "0-1"]
[Round "11"]
[TimeControl "180+1"]
[Date "2022.11.01"]
[WhiteClock "0:00:02"]
[BlackClock "0:00:20"]

1. d4 {[%clk 0:03:00]}  f5 {[%clk 0:02:56]} 2. c4 {[%clk 0:03:01]}  Nf6 {[%clk 0:02:55]} 3. Nc3 {[%clk 0:03:02]}  d6 {[%clk 0:02:55]} 4. Bg5 {[%clk 0:03:02]}  Nbd7 {[%clk 0:02:54]} 5. Qc2 {[%clk 0:03:02]}  g6 {[%clk 0:02:54]} 6. O-O-O {[%clk 0:03:03]}  Bg7 {[%clk 0:02:54]} 7. h4 {[%clk 0:03:03]}  c6 {[%clk 0:02:52]} 8. Nh3 {[%clk 0:03:00]}  Qa5 {[%clk 0:02:51]} 9. Nf4 {[%clk 0:02:57]}  Nb6 {[%clk 0:02:44]} 10. e3 {[%clk 0:02:56]}  e5 {[%clk 0:02:43]} 11. h5 {[%clk 0:02:55]}  O-O {[%clk 0:02:18]} 12. dxe5 {[%clk 0:02:37]}  dxe5 {[%clk 0:02:17]} 13. h6 {[%clk 0:02:18]}  Bh8 {[%clk 0:02:15]} 14. Nxg6 {[%clk 0:02:17]}  hxg6 {[%clk 0:02:14]} 15. h7+ {[%clk 0:02:18]}  Kf7 {[%clk 0:02:01]} 16. g4 {[%clk 0:01:46]}  Be6 {[%clk 0:01:31]} 17. gxf5 {[%clk 0:01:46]}  Bxf5 {[%clk 0:01:29]} 18. Qb3 {[%clk 0:01:46]}  Be6 {[%clk 0:01:24]} 19. Bh3 {[%clk 0:01:46]}  Qc5 {[%clk 0:01:16]} 20. Bxe6+ {[%clk 0:01:40]}  Kxe6 {[%clk 0:01:15]} 21. Rh4 {[%clk 0:01:23]}  Rad8 {[%clk 0:00:38]} 22. Rg1 {[%clk 0:01:22]}  Kd7 {[%clk 0:00:36]} 23. Bxf6 {[%clk 0:01:17]}  Bxf6 {[%clk 0:00:35]} 24. Ne4 {[%clk 0:01:18]}  Qe7 {[%clk 0:00:29]} 25. Rh6 {[%clk 0:01:11]}  Kc7 {[%clk 0:00:28]} 26. Rhxg6 {[%clk 0:01:10]}  Nd7 {[%clk 0:00:26]} 27. Rh6 {[%clk 0:00:31]}  Nc5 {[%clk 0:00:23]} 28. Nxc5 {[%clk 0:00:27]}  Qxc5 {[%clk 0:00:23]} 29. Qc2 {[%clk 0:00:23]}  Bh8 {[%clk 0:00:22]} 30. a3 {[%clk 0:00:23]}  b5 {[%clk 0:00:22]} 31. Kb1 {[%clk 0:00:22]}  Qxc4 {[%clk 0:00:22]} 32. Qxc4 {[%clk 0:00:22]}  bxc4 {[%clk 0:00:21]} 33. Rc1 {[%clk 0:00:22]}  Rxf2 {[%clk 0:00:20]} 34. Rxc4 {[%clk 0:00:23]}  Rd6 {[%clk 0:00:21]} 35. Rhh4 {[%clk 0:00:13]}  e4 {[%clk 0:00:20]} 36. Rb4 {[%clk 0:00:11]}  Rdd2 {[%clk 0:00:20]} 37. Rhxe4 {[%clk 0:00:11]}  Rxb2+ {[%clk 0:00:20]} 38. Rxb2 {[%clk 0:00:11]}  Rxb2+ {[%clk 0:00:20]} 39. Kc1 {[%clk 0:00:11]}  Rh2 {[%clk 0:00:20]} 40. Re7+ {[%clk 0:00:11]}  Kb6 {[%clk 0:00:21]} 41. e4 {[%clk 0:00:12]}  a5 {[%clk 0:00:20]} 42. e5 {[%clk 0:00:11]}  Kc5 {[%clk 0:00:20]} 43. a4 {[%clk 0:00:09]}  Kd5 {[%clk 0:00:20]} 44. e6 {[%clk 0:00:07]}  Kd6 {[%clk 0:00:20]} 45. Ra7 {[%clk 0:00:07]}  Kxe6 {[%clk 0:00:19]} 46. Kd1 {[%clk 0:00:07]}  Kd5 {[%clk 0:00:19]} 47. Rxa5+ {[%clk 0:00:07]}  c5 {[%clk 0:00:19]} 48. Ra7 {[%clk 0:00:08]}  c4 {[%clk 0:00:20]} 49. Rb7 {[%clk 0:00:08]}  c3 {[%clk 0:00:20]} 50. a5 {[%clk 0:00:07]}  Be5 {[%clk 0:00:19]} 51. a6 {[%clk 0:00:07]}  c2+ {[%clk 0:00:19]} 52. Kc1 {[%clk 0:00:02]}  Bf4+ {[%clk 0:00:20]} 0-1


[Site "https://www.chess.com"]

[Event "Titled Tuesday Blitz November 01 Early 2022"]
[White "Schut, Han"]
[Black "Guz, Ari"]
[WhiteFideId "1005561"]
[BlackFideId "2825759"]
[WhiteElo "2024"]
[BlackElo "2205"]
[Result "0-1"]
[Round "11"]
[TimeControl "180+1"]
[Date "2022.11.02"]
[WhiteClock "0:00:08"]
[BlackClock "0:01:04"]

1. e4 {[%clk 0:03:00]}  d5 {[%clk 0:02:52]} 2. exd5 {[%clk 0:03:00]}  c6 {[%clk 0:02:53]} 3. dxc6 {[%clk 0:02:59]}  Nxc6 {[%clk 0:02:54]} 4. Nf3 {[%clk 0:02:56]}  e5 {[%clk 0:02:54]} 5. d3 {[%clk 0:02:56]}  f5 {[%clk 0:02:51]} 6. Be2 {[%clk 0:02:56]}  Nf6 {[%clk 0:02:52]} 7. O-O {[%clk 0:02:55]}  Bc5 {[%clk 0:02:51]} 8. Nc3 {[%clk 0:02:43]}  O-O {[%clk 0:02:45]} 9. Na4 {[%clk 0:02:31]}  Bd6 {[%clk 0:02:42]} 10. Be3 {[%clk 0:01:59]}  Qc7 {[%clk 0:02:39]} 11. Bc5 {[%clk 0:01:53]}  Bxc5 {[%clk 0:02:34]} 12. Nxc5 {[%clk 0:01:54]}  b6 {[%clk 0:02:34]} 13. Nb3 {[%clk 0:01:48]}  Bb7 {[%clk 0:02:33]} 14. d4 {[%clk 0:01:43]}  e4 {[%clk 0:02:33]} 15. Ng5 {[%clk 0:01:40]}  Qe7 {[%clk 0:02:25]} 16. Bc4+ {[%clk 0:01:30]}  Kh8 {[%clk 0:02:24]} 17. Ne6 {[%clk 0:01:22]}  Rfe8 {[%clk 0:02:09]} 18. Nf4 {[%clk 0:01:11]}  Rad8 {[%clk 0:02:05]} 19. c3 {[%clk 0:01:10]}  Qd6 {[%clk 0:01:49]} 20. g3 {[%clk 0:01:06]}  e3 {[%clk 0:01:42]} 21. Bd3 {[%clk 0:00:50]}  exf2+ {[%clk 0:01:35]} 22. Rxf2 {[%clk 0:00:48]}  Ne7 {[%clk 0:01:19]} 23. Bf1 {[%clk 0:00:37]}  Ng6 {[%clk 0:01:11]} 24. Nxg6+ {[%clk 0:00:35]}  hxg6 {[%clk 0:01:12]} 25. Bg2 {[%clk 0:00:36]}  Ng4 {[%clk 0:01:10]} 26. Re2 {[%clk 0:00:30]}  Bxg2 {[%clk 0:01:10]} 27. Rxg2 {[%clk 0:00:19]}  Ne3 {[%clk 0:01:10]} 28. Qd2 {[%clk 0:00:17]}  Nxg2 {[%clk 0:01:09]} 29. Qxg2 {[%clk 0:00:18]}  Re3 {[%clk 0:01:07]} 30. Rf1 {[%clk 0:00:15]}  Rde8 {[%clk 0:01:07]} 31. Qh3+ {[%clk 0:00:13]}  Kg8 {[%clk 0:01:06]} 32. Qh4 {[%clk 0:00:13]}  Re2 {[%clk 0:01:04]} 33. Nc1 {[%clk 0:00:11]}  Rxb2 {[%clk 0:01:04]} 34. Nd3 {[%clk 0:00:12]}  Rd2 {[%clk 0:01:02]} 35. Ne5 {[%clk 0:00:11]}  Rxe5 {[%clk 0:01:02]} 36. dxe5 {[%clk 0:00:10]}  Qc5+ {[%clk 0:01:03]} 37. Kh1 {[%clk 0:00:08]}  Qd5+ {[%clk 0:01:04]} 0-1


[Site "https://www.chess.com"]

[Event "Titled Tuesday Blitz November 01 Early 2022"]
[White "Shipov, Sergei"]
[Black "Postnikov, Daniil"]
[WhiteFideId "4113624"]
[BlackFideId "4166329"]
[WhiteElo "2767"]
[BlackElo "2261"]
[Result "0-1"]
[Round "11"]
[TimeControl "180+1"]
[Date "2022.11.01"]
[WhiteClock "0:02:34"]
[BlackClock "0:02:09"]

1. d4 {[%clk 0:03:00]}  Nf6 {[%clk 0:03:00]} 2. c4 {[%clk 0:03:01]}  g6 {[%clk 0:03:01]} 3. Nc3 {[%clk 0:03:01]}  Bg7 {[%clk 0:03:01]} 4. e4 {[%clk 0:03:01]}  d6 {[%clk 0:03:00]} 5. Be2 {[%clk 0:03:02]}  O-O {[%clk 0:03:00]} 6. g4 {[%clk 0:03:02]}  c5 {[%clk 0:02:59]} 7. g5 {[%clk 0:03:02]}  Nfd7 {[%clk 0:02:43]} 8. d5 {[%clk 0:03:02]}  e6 {[%clk 0:02:41]} 9. h4 {[%clk 0:03:02]}  exd5 {[%clk 0:02:41]} 10. exd5 {[%clk 0:03:02]}  a6 {[%clk 0:02:36]} 11. a4 {[%clk 0:03:01]}  Qe7 {[%clk 0:02:32]} 12. Kf1 {[%clk 0:03:01]}  f6 {[%clk 0:02:17]} 13. Nf3 {[%clk 0:02:49]}  Ne5 {[%clk 0:02:13]} 14. Nxe5 {[%clk 0:02:42]}  Qxe5 {[%clk 0:02:13]} 15. Be3 {[%clk 0:02:34]}  fxg5 {[%clk 0:02:10]} 16. hxg5 {[%clk 0:02:34]}  Qxe3 {[%clk 0:02:09]} 0-1


[Site "https://www.chess.com"]

[Event "Titled Tuesday Blitz November 01 Early 2022"]
[White "Smietanska, Wiktoria"]
[Black "Piesik, Piotr"]
[WhiteFideId "21869359"]
[BlackFideId "1136194"]
[WhiteElo "1854"]
[BlackElo "2323"]
[Result "0-1"]
[Round "11"]
[TimeControl "180+1"]
[Date "2022.11.02"]
[WhiteClock "0:01:37"]
[BlackClock "0:02:37"]

1. c4 {[%clk 0:03:00]}  g6 {[%clk 0:02:56]} 2. Nc3 {[%clk 0:03:00]}  Bg7 {[%clk 0:02:56]} 3. g3 {[%clk 0:03:00]}  Nc6 {[%clk 0:02:56]} 4. Bg2 {[%clk 0:03:00]}  d6 {[%clk 0:02:57]} 5. e4 {[%clk 0:02:58]}  e5 {[%clk 0:02:57]} 6. Nge2 {[%clk 0:02:59]}  Nge7 {[%clk 0:02:56]} 7. O-O {[%clk 0:02:59]}  O-O {[%clk 0:02:57]} 8. d3 {[%clk 0:03:00]}  Be6 {[%clk 0:02:57]} 9. f4 {[%clk 0:03:00]}  f5 {[%clk 0:02:57]} 10. Be3 {[%clk 0:02:59]}  Qd7 {[%clk 0:02:56]} 11. Qd2 {[%clk 0:02:53]}  Rf7 {[%clk 0:02:55]} 12. Nd5 {[%clk 0:02:52]}  Raf8 {[%clk 0:02:54]} 13. Rf2 {[%clk 0:02:50]}  fxe4 {[%clk 0:02:53]} 14. Bxe4 {[%clk 0:02:49]}  Nf5 {[%clk 0:02:53]} 15. b4 {[%clk 0:02:30]}  Nxe3 {[%clk 0:02:51]} 16. Nxe3 {[%clk 0:01:53]}  exf4 {[%clk 0:02:50]} 17. Nxf4 {[%clk 0:01:49]}  Bxa1 {[%clk 0:02:43]} 18. Nxe6 {[%clk 0:01:46]}  Rxf2 {[%clk 0:02:43]} 19. Nxf8 {[%clk 0:01:44]}  Rxd2 {[%clk 0:02:39]} 20. Nxd7 {[%clk 0:01:44]}  Bd4 {[%clk 0:02:37]} 21. Bd5+ {[%clk 0:01:37]}  Kg7 {[%clk 0:02:37]} 0-1


[Site "https://www.chess.com"]

[Event "Titled Tuesday Blitz November 01 Early 2022"]
[White "Tarasova, Viktoriya"]
[Black "Fathy, Elameir"]
[WhiteFideId "4175840"]
[BlackFideId "10600396"]
[WhiteElo "2182"]
[BlackElo "2311"]
[Result "0-1"]
[Round "11"]
[TimeControl "180+1"]
[Date "2022.11.02"]
[WhiteClock "0:00:02"]
[BlackClock "0:00:03"]

1. d4 {[%clk 0:03:00]}  d5 {[%clk 0:02:59]} 2. c4 {[%clk 0:03:00]}  e6 {[%clk 0:02:59]} 3. Nc3 {[%clk 0:02:58]}  c6 {[%clk 0:03:00]} 4. e3 {[%clk 0:02:58]}  f5 {[%clk 0:03:00]} 5. Nf3 {[%clk 0:02:58]}  Nf6 {[%clk 0:02:59]} 6. Bd3 {[%clk 0:02:59]}  Bd6 {[%clk 0:02:59]} 7. O-O {[%clk 0:02:59]}  O-O {[%clk 0:03:00]} 8. b3 {[%clk 0:03:00]}  Nbd7 {[%clk 0:02:49]} 9. Bb2 {[%clk 0:02:59]}  Qe7 {[%clk 0:02:45]} 10. Ne2 {[%clk 0:02:57]}  b6 {[%clk 0:02:35]} 11. Ne5 {[%clk 0:02:55]}  Bb7 {[%clk 0:02:35]} 12. Rc1 {[%clk 0:02:54]}  Rac8 {[%clk 0:02:33]} 13. cxd5 {[%clk 0:02:50]}  Nxd5 {[%clk 0:01:50]} 14. Nc4 {[%clk 0:02:32]}  Bb8 {[%clk 0:01:39]} 15. Qd2 {[%clk 0:02:20]}  c5 {[%clk 0:01:33]} 16. f4 {[%clk 0:02:10]}  cxd4 {[%clk 0:01:17]} 17. exd4 {[%clk 0:02:08]}  Qh4 {[%clk 0:01:07]} 18. Ba3 {[%clk 0:01:49]}  Rf6 {[%clk 0:00:59]} 19. Qe1 {[%clk 0:01:39]}  Qxe1 {[%clk 0:00:49]} 20. Rcxe1 {[%clk 0:01:35]}  Rg6 {[%clk 0:00:41]} 21. g3 {[%clk 0:01:35]}  b5 {[%clk 0:00:32]} 22. Na5 {[%clk 0:01:05]}  b4 {[%clk 0:00:17]} 23. Bc1 {[%clk 0:00:55]}  Ba8 {[%clk 0:00:16]} 24. Nc4 {[%clk 0:00:41]}  h5 {[%clk 0:00:16]} 25. Kf2 {[%clk 0:00:39]}  h4 {[%clk 0:00:16]} 26. Rg1 {[%clk 0:00:39]}  hxg3+ {[%clk 0:00:14]} 27. Rxg3 {[%clk 0:00:38]}  Rh6 {[%clk 0:00:13]} 28. h3 {[%clk 0:00:38]}  N5f6 {[%clk 0:00:04]} 29. Reg1 {[%clk 0:00:36]}  Nh5 {[%clk 0:00:05]} 30. Rg5 {[%clk 0:00:36]}  Bc7 {[%clk 0:00:03]} 31. Bd2 {[%clk 0:00:31]}  Bd8 {[%clk 0:00:03]} 32. Rg6 {[%clk 0:00:31]}  Bh4+ {[%clk 0:00:03]} 33. Kf1 {[%clk 0:00:31]}  Rxg6 {[%clk 0:00:03]} 34. Rxg6 {[%clk 0:00:31]}  Nf8 {[%clk 0:00:04]} 35. Rg1 {[%clk 0:00:29]}  Nf6 {[%clk 0:00:02]} 36. Bxb4 {[%clk 0:00:27]}  Be4 {[%clk 0:00:01]} 37. Bxe4 {[%clk 0:00:21]}  Nxe4 {[%clk 0:00:02]} 38. Kg2 {[%clk 0:00:21]}  Bf6 {[%clk 0:00:02]} 39. Rd1 {[%clk 0:00:20]}  Ng6 {[%clk 0:00:02]} 40. Kf3 {[%clk 0:00:19]}  Nh4+ {[%clk 0:00:02]} 41. Ke3 {[%clk 0:00:20]}  Ng2+ {[%clk 0:00:02]} 42. Kf3 {[%clk 0:00:19]}  Nh4+ {[%clk 0:00:02]} 43. Ke3 {[%clk 0:00:16]}  Kf7 {[%clk 0:00:03]} 44. Rg1 {[%clk 0:00:15]}  Rh8 {[%clk 0:00:02]} 45. a4 {[%clk 0:00:14]}  Ng6 {[%clk 0:00:03]} 46. Rh1 {[%clk 0:00:13]}  Rd8 {[%clk 0:00:02]} 47. Rg1 {[%clk 0:00:12]}  Ne7 {[%clk 0:00:03]} 48. Bxe7 {[%clk 0:00:10]}  Kxe7 {[%clk 0:00:03]} 49. Rc1 {[%clk 0:00:09]}  Rh8 {[%clk 0:00:03]} 50. Rh1 {[%clk 0:00:08]}  Rb8 {[%clk 0:00:03]} 51. Nc1 {[%clk 0:00:07]}  Kf7 {[%clk 0:00:04]} 52. Rd1 {[%clk 0:00:07]}  Rh8 {[%clk 0:00:04]} 53. Rh1 {[%clk 0:00:06]}  g5 {[%clk 0:00:04]} 54. Ne2 {[%clk 0:00:03]}  g4 {[%clk 0:00:04]} 55. h4 {[%clk 0:00:02]}  Rxh4 {[%clk 0:00:03]} 0-1


[Site "https://www.chess.com"]